[Event "22nd Alekhine FIDE 2018"]
[Site "Voronezh"]
[Date "2018.06.16"]
[Round "5"]
[White "Artemov, Nikita"]
[Black "Lukovnikov, Alexander"]
[Result "0-1"]
[ECO "C88"]
[WhiteElo "1970"]
[BlackElo "2153"]
[Annotator "NA"]
[PlyCount "68"]
[EventDate "2018.??.??"]
[EventType "swiss"]
[EventCountry "RUS"]
[SourceTitle "playchess.com"]
[Source "ChessBase"]
[SourceQuality "1"]
[TimeControl "5400+30"]

{[%evp 9,63,18,24,32767,32767,32767,32767,32767,32767,19,28,4,43,19,10,0,3,0,0,-4,-7,-22,32767,-8,32767,-25,-9,-9,0,-20,32767,32767,32767,32767,32767,32767,32767,32767,32767,32767,32767,0,0,0,32767,0,14,-26,32767,-57,-29,-117,0,0,0,-1]} 1. e4 e5 2. Nf3 Nc6 3. Bb5 a6 4. Ba4 Nf6 5. O-O Be7 6. Re1 b5 7. Bb3 O-O 8. a4 Rb8 9. d3 {LiveBook: 15 Games} d6 10. Nbd2 Be6 11. c3 b4 12. Bc2 {C88: Closed Ruy Lopez: Anti-Marshall Systems} (12. Bxe6 fxe6 13. d4 bxc3 14. bxc3 exd4 15. cxd4 d5 16. Ba3 Bxa3 {½-½ (16) Marcinkiewicz,J (2443)-Martin Clemente,J (2600) ICCF email 2007}) 12... bxc3 13. bxc3 d5 14. d4 $146 ({Predecessor:} 14. exd5 Nxd5 15. Ne4 h6 16. Bd2 f5 17. Ng3 Bf6 18. Qe2 {1-0 (36) Sebag,M (2320)-Mehdi,A (2140) Bugeat 2012}) 14... exd4 15. cxd4 dxe4 16. Nxe4 Bd5 17. Nxf6+ Bxf6 18. Ne5 Nb4 19. Bf5 Bxe5 20. dxe5 Be6 21. Bxe6 fxe6 22. Qg4 Rf7 23. Bg5 Qe8 24. Rad1 Qc6 25. Rd4 Nd5 26. Rc4 Qd7 27. Rec1 Rf5 28. Qg3 Rb2 29. Be3 Ra2 30. Bc5 (30. Bh6 $11 {remains equal.}) 30... h6 (30... Rxa4 $17 31. Rb1 Kf7) 31. Qb3 Re2 32. Bd4 $11 Qf7 33. Rf1 Rg5 34. Be3 Nxe3 0-1

[Event "22nd Alekhine FIDE 2018"]
[Site "Voronezh"]
[Date "2018.06.16"]
[Round "5"]
[White "Pingin, Artem"]
[Black "Bruyatskaya, Mariya"]
[Result "1/2-1/2"]
[ECO "B15"]
[WhiteElo "1967"]
[BlackElo "2026"]
[Annotator "NA RC"]
[PlyCount "49"]
[EventDate "2018.??.??"]
[EventType "swiss"]
[EventCountry "RUS"]
[SourceTitle "playchess.com"]
[Source "ChessBase"]
[SourceQuality "1"]
[TimeControl "5400+30"]

1. e4 c6 2. d4 d5 3. Nc3 dxe4 4. Nxe4 Nf6 5. Nxf6+ exf6 6. Nf3 Bg4 7. Be2 Bd6 8. h3 Bh5 9. Nh4 Bg6 10. Nxg6 hxg6 11. Be3 Nd7 12. c3 O-O 13. Qc2 f5 14. O-O-O Re8 15. Kb1 f4 16. Bc1 Nf6 17. Bc4 b5 18. Bb3 Nd5 19. Rdg1 a5 20. g3 fxg3 21. fxg3 a4 22. Bxd5 cxd5 23. a3 Qc7 24. h4 Qe7 25. h5 1/2-1/2

[Event "22nd Alekhine FIDE 2018"]
[Site "Voronezh"]
[Date "2018.06.16"]
[Round "5"]
[White "Kuzmin, Roman"]
[Black "Ioffe, Evgeny"]
[Result "1-0"]
[ECO "C84"]
[WhiteElo "1963"]
[BlackElo "2079"]
[Annotator "NA"]
[PlyCount "30"]
[EventDate "2018.??.??"]
[EventType "swiss"]
[EventCountry "RUS"]
[SourceTitle "playchess.com"]
[Source "ChessBase"]
[SourceQuality "1"]
[TimeControl "5400+30"]

1. e4 e5 2. Nf3 Nc6 3. Bb5 a6 4. Ba4 Nf6 5. O-O Be7 6. d3 b5 7. Bb3 O-O 8. a4 Bb7 9. Na3 h6 10. Bd2 b4 11. Nc4 d6 12. Ne3 Re8 13. c3 bxc3 14. bxc3 Rb8 15. Rb1 Bf8 1-0

[Event "22nd Alekhine FIDE 2018"]
[Site "Voronezh"]
[Date "2018.06.16"]
[Round "5"]
[White "Kulpin, Dmitriy"]
[Black "Bitkinin, Lenar"]
[Result "1-0"]
[ECO "A04"]
[WhiteElo "1954"]
[BlackElo "2055"]
[Annotator "NA"]
[PlyCount "69"]
[EventDate "2018.??.??"]
[EventType "swiss"]
[EventCountry "RUS"]
[SourceTitle "playchess.com"]
[Source "ChessBase"]
[SourceQuality "1"]
[TimeControl "5400+30"]

{[%evp 8,53,41,36,53,32767,32767,27,32767,32767,78,87,104,53,80,75,66,27,66,51,83,62,98,31,92,61,32767,50,51,32767,32767,32767,32767,54,126,162,168,142,185,231,317,342,321,357,409,540,525,268]} 1. Nf3 f5 2. d3 Nf6 3. e4 d6 4. exf5 {A04: Unusual lines after 1 Nf3 and King's Indian Attack} Bxf5 5. d4 g6 {LiveBook: 8 Games} 6. Nc3 Bg7 7. Bd3 Qd7 8. O-O Nc6 9. Bxf5 $146 ({Predecessor:} 9. d5 Nb4 10. Bxf5 gxf5 11. a3 Na6 {1-0 (23) Carlsen,M (2881)-Rodriguez Vila,A (2437) Caxias do Sul 2014}) 9... gxf5 10. d5 Nd8 11. Re1 c6 12. Ng5 h6 13. Ne6 Nxe6 14. dxe6 Qc7 15. Qf3 Qa5 (15... O-O-O $14) 16. Bd2 O-O 17. Rad1 Ng4 18. b4 Qb6 19. Ne2 a5 20. Nf4 (20. bxa5 $16 Qc5 21. h3) 20... Kh7 (20... axb4 $14 21. Ng6 Bd4) 21. h3 ({Don't take} 21. bxa5 Qc5 $16) 21... Ne5 {[#]} 22. Qh5 $1 ({Worse is} 22. Qg3 axb4 23. Qh4 $11 Rf6 $15) 22... Rf6 {[#]} (22... Qd4 $16) 23. Bc3 $1 ({Not} 23. bxa5 Qc5 $16) 23... axb4 24. Bxe5 dxe5 25. Rxe5 Ra5 26. Rxa5 Qxa5 27. Rd7 $18 Qxa2 28. Rxe7 Qxc2 29. Qh4 Qd1+ 30. Kh2 Qd6 31. Rd7 Qe5 32. Qg3 Rf8 33. Nh5 Qxg3+ 34. fxg3 b5 35. Nxg7 1-0

[Event "22nd Alekhine FIDE 2018"]
[Site "Voronezh"]
[Date "2018.06.16"]
[Round "5"]
[White "Zaitseva, Lyudmila"]
[Black "Selensky, Andrey"]
[Result "1/2-1/2"]
[ECO "D43"]
[WhiteElo "1954"]
[BlackElo "2040"]
[Annotator "NA"]
[PlyCount "119"]
[EventDate "2018.??.??"]
[EventType "swiss"]
[EventCountry "RUS"]
[SourceTitle "playchess.com"]
[Source "ChessBase"]
[SourceQuality "1"]
[TimeControl "5400+30"]

1. d4 {[%emt 0:00:00]} d5 {[%emt 0:00:04]} 2. c4 {[%emt 0:00:00]} e6 {[%emt 0:00:13]} 3. Nc3 {[%emt 0:00:00]} Nf6 {[%emt 0:00:08]} 4. Nf3 {[%emt 0:00:00]} c6 {[%emt 0:00:08]} 5. Qd3 {[%emt 0:00:17]} Nbd7 {[%emt 0:01:20]} 6. e4 {[%emt 0:00:21] D43: Damengambit (Botwinnik-Variante)} dxe4 {[%emt 0:00:15]} 7. Nxe4 {[%emt 0:00:03]} Nxe4 {[%emt 0:00:48]} 8. Qxe4 {[%emt 0:00:04]} Nf6 {[%emt 0:00:08]} (8... Bb4+ 9. Bd2 Bxd2+ 10. Nxd2 c5 11. dxc5 Qa5 12. Be2 Qxc5 13. O-O Nf6 14. Qc2 Bd7 15. a3 O-O 16. Bf3 Qc7 17. b4 Rfd8 18. Rac1 Bc6 {½-½ (54) Baryshpolets,A (2591)-Quesada Perez,Y (2630) Saint Louis 2017}) 9. Qc2 {[%emt 0:00:50]} c5 {[%emt 0:04:30]} 10. Bf4 {[%emt 0:05:42]} cxd4 $146 {[%emt 0:01:58]} ({Vorgänger:} 10... Qa5+ 11. Bd2 Qb6 12. Bc3 cxd4 13. Nxd4 Bd7 {½-½ (22) Esen,B (2528)-Tuncer,T (2274) Izmir 2017}) 11. O-O-O {[%emt 0:00:34]} Bd7 {[%emt 0:08:24]} 12. Nxd4 {[%emt 0:06:57]} Qa5 {[%emt 0:01:01]} 13. Kb1 {[%emt 0:04:45]} Rc8 {[%emt 0:03:00]} 14. Bd3 {[%emt 0:12:43]} Nd5 {[%emt 0:11:40]} 15. Bd2 {[%emt 0:12:05]} Bb4 {[%emt 0:08:25]} 16. a3 {[%emt 0:09:27]} Bxd2 {[%emt 0:09:52]} 17. Qxd2 {[%emt 0:00:03]} Qxd2 {[%emt 0:00:11]} 18. Rxd2 {[%emt 0:00:07]} Nf4 {[%emt 0:03:43]} 19. Be4 {[%emt 0:02:55]} Rxc4 {[%emt 0:01:28]} 20. Bxb7 {[%emt 0:00:30]} O-O {[%emt 0:03:43]} 21. g3 {[%emt 0:03:50]} e5 {[%emt 0:06:33]} 22. Nf3 {[%emt 0:05:35]} Rc7 {[%emt 0:04:17]} 23. Be4 {[%emt 0:05:10]} Ng6 {[%emt 0:04:31]} 24. Bxg6 {[%emt 0:04:47]} (24. Rc1 $14 Rxc1+ 25. Kxc1) 24... hxg6 {[%emt 0:00:06]} 25. Nxe5 {[%emt 0:00:14]} Bf5+ {[%emt 0:00:09]} 26. Ka1 $1 {[%emt 0:01:46]} f6 {[%emt 0:00:32]} 27. g4 $1 {[%emt 0:02:03]} Be6 {[%emt 0:00:34]} 28. Nxg6 {[%emt 0:01:12]} Rfc8 {[%emt 0:00:10]} 29. b4 {[%emt 0:01:33]} Bf7 {[%emt 0:00:44]} 30. Nf4 {[%emt 0:01:06]} Rc3 $1 {[%emt 0:02:40]} 31. Nd5 {[%emt 0:05:55]} Rxa3+ $11 {[%emt 0:02:00]} 32. Kb2 {[%emt 0:00:32]} Bxd5 {[%emt 0:00:06]} 33. Rxd5 {[%emt 0:00:14]} Rf3 {[%emt 0:00:08]} 34. Rc5 {[%emt 0:03:30]} Rb8 {[%emt 0:02:36]} 35. g5 {[%emt 0:03:54]} Rxb4+ {[%emt 0:00:48]} 36. Kc2 {[%emt 0:00:08]} Rg4 {[%emt 0:00:11]} 37. gxf6 {[%emt 0:00:10]} Rxf2+ {[%emt 0:00:10]} 38. Kd3 {[%emt 0:00:15]} Rf3+ {[%emt 0:00:07]} 39. Ke2 {[%emt 0:00:12]} Rxf6 {[%emt 0:00:06]} 40. Ra5 {[%emt 0:02:37]} Re4+ {[%emt 0:01:04]} 41. Kd3 {[%emt 0:00:07]} Re7 {[%emt 0:00:07]} 42. Rha1 {[%emt 0:04:21]} Rd6+ {[%emt 0:00:44]} 43. Kc4 {[%emt 0:00:06]} Rc7+ {[%emt 0:02:14]} 44. Rc5 {[%emt 0:00:51]} Rxc5+ {[%emt 0:00:14]} 45. Kxc5 {[%emt 0:00:01]} Rd7 {[%emt 0:00:07]} 46. Kc6 {[%emt 0:00:25]} Rf7 {[%emt 0:00:10]} 47. h4 {[%emt 0:01:51]} Kh7 {[%emt 0:00:17]} 48. Ra5 {[%emt 0:00:24]} Kh6 {[%emt 0:00:12]} 49. Kd6 {[%emt 0:00:43]} Rf6+ {[%emt 0:04:35]} 50. Ke5 {[%emt 0:00:16]} a6 {[%emt 0:00:26]} 51. Ke4 {[%emt 0:00:12]} g6 {[%emt 0:01:02]} 52. Ke3 {[%emt 0:01:10]} Rb6 {[%emt 0:02:08]} 53. Kf3 {[%emt 0:00:41]} Re6 {[%emt 0:03:21]} 54. Kf4 {[%emt 0:00:44]} Rf6+ {[%emt 0:01:41]} 55. Kg4 {[%emt 0:00:20]} Kg7 {[%emt 0:00:39]} 56. h5 {[%emt 0:01:17]} gxh5+ {[%emt 0:00:05]} 57. Kxh5 {[%emt 0:00:12]} Kf7 {[%emt 0:00:11]} 58. Kg5 {[%emt 0:00:12]} Rb6 {[%emt 0:00:28]} 59. Kf5 {[%emt 0:00:20]} Re6 {[%emt 0:01:17]} 60. Rd5 1/2-1/2

[Event "22nd Alekhine FIDE 2018"]
[Site "Voronezh"]
[Date "2018.06.17"]
[Round "6"]
[White "Provkin, Vladimir"]
[Black "Zisin, Oleg"]
[Result "1-0"]
[ECO "A45"]
[WhiteElo "2182"]
[BlackElo "2012"]
[Annotator "NA"]
[PlyCount "68"]
[EventDate "2018.??.??"]
[EventType "swiss"]
[EventCountry "RUS"]
[SourceTitle "playchess.com"]
[Source "ChessBase"]
[SourceQuality "1"]
[TimeControl "5400+30"]

{[%evp 11,67,0,32767,18,32767,9,32767,8,35,32767,22,32767,32767,12,51,5,15,-43,32767,32767,-23,-34,7,18,20,25,0,0,32767,32767,25,32767,16,-1,32767,0,67,32767,32767,32767,51,32767,32767,19,32767,32767,32767,32767,32767,32767,32767,32767,47,32767,145,32767,32767,875]} 1. d4 {[%emt 0:08:30]} Nf6 {[%emt 0:00:07]} 2. Bg5 {[%emt 0:00:23]} Ne4 {[%emt 0:00:12]} 3. Bf4 {[%emt 0:00:11]} c5 {[%emt 0:00:06]} 4. f3 {[%emt 0:03:05]} Qa5+ {[%emt 0:00:21]} 5. c3 {[%emt 0:00:42]} Nf6 {[%emt 0:00:09]} 6. d5 {[%emt 0:03:27]} Qb6 {[%emt 0:02:32]} 7. Bc1 {[%emt 0:01:44]} e6 {[%emt 0:03:34]} 8. e4 {[%emt 0:03:51]} exd5 {[%emt 0:00:14]} 9. exd5 {[%emt 0:00:31]} Be7 {[%emt 0:17:30] LiveBook: 22 Games A45: Trompowsky Attack} 10. Bc4 $146 {[%emt 0:00:25]} ({Predecessor:} 10. c4 d6 11. Bd3 Nbd7 12. f4 O-O 13. Nc3 Re8 14. Nge2 Nf8 15. Qc2 Bg4 16. O-O Bxe2 17. Bxe2 {0-1 (55) Mchedlishvili,M (2600)-Melkumyan,H (2664) Batumi 2018}) 10... d6 {[%emt 0:01:13]} 11. Ne2 {[%emt 0:01:32]} Bf5 {[%emt 0:02:14]} 12. Nd2 {[%emt 0:02:01]} Nbd7 {[%emt 0:01:07]} 13. a4 {[%emt 0:01:29]} Ne5 {[%emt 0:08:34]} 14. a5 {[%emt 0:01:53]} Qc7 {[%emt 0:00:41]} 15. O-O {[%emt 0:03:30]} O-O {[%emt 0:04:06]} 16. Ng3 {[%emt 0:01:57]} Bd3 {[%emt 0:07:02]} 17. Bxd3 {[%emt 0:02:32]} Nxd3 {[%emt 0:00:01]} 18. Nc4 {[%emt 0:00:28]} Nxc1 {[%emt 0:02:04]} 19. Rxc1 {[%emt 0:01:20]} Rfe8 {[%emt 0:01:21]} 20. Qd3 {[%emt 0:04:56]} g6 {[%emt 0:04:35]} 21. Ne4 {[%emt 0:04:18]} Nd7 {[%emt 0:03:49]} 22. f4 {[%emt 0:05:35]} f5 {[%emt 0:09:20]} 23. Nf2 {[%emt 0:02:26]} Nf8 {[%emt 0:05:46]} (23... b5 $11 24. axb6 Nxb6) 24. g4 {[%emt 0:01:29]} Qd7 {[%emt 0:00:18]} 25. h3 {[%emt 0:08:26]} Bh4 {[%emt 0:01:28]} 26. Rc2 {[%emt 0:06:46]} Re7 {[%emt 0:02:54]} 27. Nd1 {[%emt 0:04:45]} fxg4 {[%emt 0:05:35]} 28. hxg4 {[%emt 0:00:14]} Qxg4+ {[%emt 0:00:20]} 29. Rg2 {[%emt 0:00:08]} Qd7 {[%emt 0:00:15]} 30. Nde3 {[%emt 0:00:18]} Kh8 {[%emt 0:06:01]} 31. f5 {[%emt 0:02:36]} Rf7 {[%emt 0:07:19]} 32. Qe4 {[%emt 0:17:11]} Bf6 {[%emt 0:01:02]} ({Black should try} 32... g5 $14) 33. Qf4 {[%emt 0:01:10]} Re7 {[%emt 0:02:51]} 34. fxg6 $18 {[%emt 0:01:28]} Be5 {[%emt 0:00:45]} 1-0

[Event "22nd Alekhine FIDE 2018"]
[Site "Voronezh"]
[Date "2018.06.17"]
[Round "6"]
[White "Novikov, Sergey D"]
[Black "Lilov, Aleksandr"]
[Result "1-0"]
[WhiteElo "2180"]
[BlackElo "2046"]
[Annotator "NA"]
[PlyCount "71"]
[EventDate "2018.??.??"]
[EventType "swiss"]
[EventCountry "RUS"]
[SourceTitle "playchess.com"]
[Source "ChessBase"]
[SourceQuality "1"]
[TimeControl "5400+30"]

1. d4 c5 2. d5 g6 3. c4 Bg7 4. e4 d6 5. Nf3 Bg4 {LiveBook: 26 Games} 6. Be2 Nf6 7. Nc3 O-O 8. O-O Nbd7 9. h3 Bxf3 10. Bxf3 Nb6 {E91: King's Indian: Classical: 6 Be2, unusual replies including 6...c5 and 6...Bg4} (10... a6 11. Be2 Qc7 12. Bf4 Rfe8 13. Qc2 e6 14. dxe6 Rxe6 15. Rfe1 Rae8 16. Bd3 Ne5 17. Rad1 Nc6 18. Qd2 {½-½ (43) Vitiugov,N (2731)-Shomoev,A (2550) Sochi 2017}) 11. Be2 e6 12. Qc2 $146 ({Predecessor:} 12. dxe6 fxe6 13. Bg5 h6 14. Be3 Qe7 15. Qc2 Nfd7 16. Rad1 Ne5 17. b3 Nc6 18. Nb5 {1-0 (57) Boss,I (1931)-Beier,T (1768) Borkum 2004}) 12... exd5 13. cxd5 Nfd7 14. Bf4 Qe7 15. Rfe1 Rae8 16. Qd2 Ne5 17. Bg5 Bf6 18. Bh6 (18. Bxf6 $14 Qxf6 19. Rad1) 18... Bg7 19. Bg5 Bf6 20. Bh6 Bg7 21. Bxg7 Kxg7 22. a4 a6 23. a5 Na8 24. f4 Nd7 25. Bg4 f6 26. Re2 Nc7 27. Rae1 b5 28. axb6 Nxb6 29. Qd3 Qf7 30. Qg3 Nb5 31. Nxb5 axb5 32. Be6 Qe7 33. e5 Nc4 34. b3 Nb6 35. Bg4 fxe5 $16 36. fxe5 1-0

[Event "22nd Alekhine FIDE 2018"]
[Site "Voronezh"]
[Date "2018.06.17"]
[Round "6"]
[White "Lukovnikov, Alexander"]
[Black "Lebedev, Mikhail S"]
[Result "1/2-1/2"]
[ECO "B23"]
[WhiteElo "2153"]
[BlackElo "2103"]
[Annotator "NA"]
[PlyCount "87"]
[EventDate "2018.??.??"]
[EventType "swiss"]
[EventCountry "RUS"]
[SourceTitle "playchess.com"]
[Source "ChessBase"]
[SourceQuality "1"]
[TimeControl "5400+30"]

1. e4 {[%emt 0:00:00]} c5 {[%emt 0:00:42]} 2. Nc3 {[%emt 0:00:00]} Nc6 {[%emt 0:00:47]} 3. f4 {[%emt 0:00:00]} e6 {[%emt 0:01:21]} 4. Nf3 {[%emt 0:00:00]} d5 {[%emt 0:01:41]} 5. Bb5 {[%emt 0:00:11]} Nge7 {[%emt 0:01:05]} 6. d3 {[%emt 0:00:32]} a6 {[%emt 0:07:00]} 7. Bxc6+ {[%emt 0:00:14]} Nxc6 {[%emt 0:00:06]} 8. O-O {[%emt 0:00:13] LiveBook: 21 Games} Be7 {[%emt 0:02:37] B23: Sizilianisch (Geschlossenes System)} 9. Ne5 {[%emt 0:13:20]} (9. Kh1 b5 10. Qe1 b4 11. Na4 O-O 12. Be3 Qa5 13. b3 Qb5 14. c4 bxc3 15. Nxc3 Qb7 16. exd5 exd5 17. Nxd5 {1-0 (76) Shabalov,A (2544)-Pichot,A (2552) chess.com INT 2018}) 9... Nd4 {[%emt 0:22:19]} 10. Ne2 {[%emt 0:07:34]} Nxe2+ $146 {[%emt 0:09:32]} ({Vorgänger:} 10... dxe4 11. dxe4 f6 12. Nd3 O-O 13. Be3 Nc6 14. a4 b6 15. Qe1 Bb7 16. Rd1 {½-½ (30) Wilkes,G (1824)-Starp,K (2114) GER email 2007}) 11. Qxe2 O-O {[%emt 0:00:11]} 12. Kh1 {[%emt 0:01:49]} f6 {[%emt 0:04:52]} 13. Nf3 {[%emt 0:00:25]} Re8 {[%emt 0:03:41]} 14. Bd2 {[%emt 0:02:59]} Bd7 {[%emt 0:03:52]} 15. Rae1 {[%emt 0:03:59]} Bf8 {[%emt 0:04:48]} 16. Qf2 {[%emt 0:01:02]} dxe4 {[%emt 0:02:04]} 17. Rxe4 {[%emt 0:01:00]} Bc6 {[%emt 0:00:28]} 18. Re2 {[%emt 0:03:29]} Qd5 {[%emt 0:01:33]} 19. b3 {[%emt 0:00:40]} b5 {[%emt 0:02:37]} 20. Be3 {[%emt 0:12:10]} a5 {[%emt 0:05:59]} 21. Rd2 {[%emt 0:00:44]} a4 {[%emt 0:01:26]} 22. c4 {[%emt 0:00:29]} Qf5 {[%emt 0:02:59]} 23. h3 {[%emt 0:05:46]} axb3 {[%emt 0:02:35]} 24. axb3 {[%emt 0:00:18]} Ra3 {[%emt 0:00:35]} 25. cxb5 {[%emt 0:11:10]} Bxb5 {[%emt 0:00:57]} 26. Rc1 {[%emt 0:01:45]} Rxb3 {[%emt 0:06:09]} 27. Nh4 {[%emt 0:06:30]} Qd5 {[%emt 0:00:42]} 28. Bxc5 {[%emt 0:00:18]} Rxd3 {[%emt 0:01:44]} 29. Rxd3 {[%emt 0:00:10]} Qxd3 {[%emt 0:00:26]} 30. Bxf8 {[%emt 0:00:10]} Rxf8 {[%emt 0:00:07]} 31. Rc7 {[%emt 0:02:23]} Qf1+ {[%emt 0:00:42]} 32. Qxf1 {[%emt 0:00:13]} Bxf1 {[%emt 0:00:05]} 33. Nf3 {[%emt 0:00:21]} Re8 {[%emt 0:01:14]} 34. Kg1 {[%emt 0:07:19]} Bd3 {[%emt 0:00:14]} 35. Kf2 {[%emt 0:01:37]} Be4 {[%emt 0:00:48]} 36. Nd4 {[%emt 0:02:25]} e5 {[%emt 0:02:06]} 37. Nb5 {[%emt 0:00:36]} Bd3 {[%emt 0:01:36]} 38. Nd6 {[%emt 0:00:41]} Rd8 {[%emt 0:00:10]} 39. fxe5 {[%emt 0:01:17]} fxe5 {[%emt 0:00:05]} 40. Nb7 {[%emt 0:01:29]} Rf8+ {[%emt 0:00:12]} 41. Kg3 {[%emt 0:05:04]} Bg6 {[%emt 0:01:17]} 42. Nc5 {[%emt 0:01:07]} Re8 {[%emt 0:00:19]} 43. Kf3 $11 {[%emt 0:00:21]} h6 {[%emt 0:01:08]} 44. Ke3 {[%emt 0:00:05]} 1/2-1/2

[Event "22nd Alekhine FIDE 2018"]
[Site "Voronezh"]
[Date "2018.06.17"]
[Round "6"]
[White "Kolomensky, Vladimir"]
[Black "Nesterov, Andrey"]
[Result "1-0"]
[ECO "B70"]
[WhiteElo "2120"]
[BlackElo "2010"]
[Annotator "NA"]
[PlyCount "68"]
[EventDate "2018.??.??"]
[EventType "swiss"]
[EventCountry "RUS"]
[SourceTitle "playchess.com"]
[Source "ChessBase"]
[SourceQuality "1"]
[TimeControl "5400+30"]

1. e4 {[%emt 0:00:00]} c5 {[%emt 0:00:43]} 2. Nf3 {[%emt 0:00:00]} d6 {[%emt 0:00:11]} 3. d4 {[%emt 0:00:00]} cxd4 {[%emt 0:00:10]} 4. Nxd4 {[%emt 0:00:00]} Nf6 {[%emt 0:00:13]} 5. Nc3 {[%emt 0:00:00]} g6 {[%emt 0:00:09]} 6. Be2 {[%emt 0:00:11]} Bg7 {[%emt 0:00:43]} 7. O-O {[%emt 0:00:07]} O-O {[%emt 0:00:05]} 8. Bg5 {[%emt 0:01:13]} Nc6 {[%emt 0:03:41]} 9. Nb3 {[%emt 0:01:04]} Be6 {[%emt 0:04:10]} 10. Re1 {[%emt 0:00:19]} Re8 {[%emt 0:07:54] B70: Sicilian Dragon: 6 g3 and 6 Be2 (without a later Be3)} 11. Bf1 {[%emt 0:02:34] LiveBook: 6 Games} Rc8 {[%emt 0:10:59]} 12. Nd5 {[%emt 0:00:38]} Nxd5 $146 {[%emt 0:24:57]} (12... Ne5 $11) ({Predecessor:} 12... Nd7 13. c3 a6 14. f4 f6 15. Bh4 Bf7 16. Bf2 e6 17. Ne3 Qc7 18. Qf3 {1-0 (59) Rublevsky,S (2692)-Dordzhieva,D (2230) Khanty-Mansiysk 2015}) 13. exd5 Bxd5 {[%emt 0:00:04]} (13... h6 $16) 14. Qxd5 {[%emt 0:00:44]} Nb4 {[%emt 0:00:12]} 15. Qxb7 {[%emt 0:02:45]} Nxc2 {[%emt 0:18:37]} 16. Rxe7 {[%emt 0:49:26]} Rb8 17. Qxa7 {[%emt 0:49:55]} Ra8 {[%emt 0:00:45]} 18. Qb7 {[%emt 0:00:37]} Rb8 {[%emt 0:01:09]} 19. Qe4 Nxa1 20. Rxe8+ {[%emt 0:07:03]} Qxe8 {[%emt 0:00:38]} 21. Qxe8+ {[%emt 0:00:03]} Rxe8 {[%emt 0:00:07]} 22. Nxa1 {[%emt 0:00:03]} Bxb2 {[%emt 0:00:32]} 23. Nc2 {[%emt 0:01:00]} d5 {[%emt 0:03:00]} 24. Bb5 {[%emt 0:13:52]} Rc8 {[%emt 0:03:30]} 25. Nb4 {[%emt 0:02:59]} Ba3 {[%emt 0:03:04]} 26. Nc6 {[%emt 0:00:33]} Kg7 {[%emt 0:05:56]} 27. Kf1 {[%emt 0:01:17]} f6 {[%emt 0:00:08]} 28. Be3 {[%emt 0:00:08]} Kf7 {[%emt 0:03:00]} 29. Ke2 {[%emt 0:00:10]} Ke6 {[%emt 0:00:51]} 30. Kd3 {[%emt 0:06:49]} Kd6 {[%emt 0:05:24]} 31. Na7 $18 {[%emt 0:01:20]} Ra8 {[%emt 0:04:29]} 32. Ba4 {[%emt 0:05:11]} Ke6 33. Bc6 {[%emt 0:00:01]} Rb8 {[%emt 0:02:45]} 34. Nb5 Bb2 1-0

[Event "22nd Alekhine FIDE 2018"]
[Site "Voronezh"]
[Date "2018.06.17"]
[Round "6"]
[White "Khajrutdinov, Ildar"]
[Black "Tikhonov, Viacheslav"]
[Result "0-1"]
[ECO "A04"]
[WhiteElo "2106"]
[BlackElo "1993"]
[Annotator "ChessBase"]
[PlyCount "78"]
[EventDate "2018.??.??"]
[EventType "swiss"]
[EventCountry "RUS"]
[SourceTitle "playchess.com"]
[Source "ChessBase"]
[SourceQuality "1"]
[TimeControl "5400+30"]

1. Nf3 {[%emt 0:00:00]} c5 {[%emt 0:01:47]} 2. g3 {[%emt 0:00:03]} Nc6 {[%emt 0:00:47]} 3. Bg2 {[%emt 0:00:18]} g6 {[%emt 0:00:13]} 4. O-O {[%emt 0:00:47]} Bg7 {[%emt 0:00:02]} 5. c4 {[%emt 0:00:57]} e5 {[%emt 0:01:38]} 6. Nc3 {[%emt 0:01:02]} Nge7 {[%emt 0:00:11]} 7. Ne1 {[%emt 0:08:16]} O-O {[%emt 0:05:20]} 8. Nc2 {[%emt 0:01:30]} Nd4 {[%emt 0:04:45]} 9. Ne3 {[%emt 0:15:09]} d6 {[%emt 0:04:20]} 10. Ned5 {[%emt 0:01:35]} Rb8 {[%emt 0:06:25]} 11. e3 {[%emt 0:08:27]} Ne6 {[%emt 0:00:19]} 12. a3 {[%emt 0:09:04]} a6 {[%emt 0:03:05]} 13. b4 {[%emt 0:03:37]} cxb4 {[%emt 0:04:39]} 14. axb4 {[%emt 0:00:21]} b5 {[%emt 0:00:10]} 15. Nxe7+ {[%emt 0:02:55]} Qxe7 {[%emt 0:00:06]} 16. cxb5 {[%emt 0:00:12]} axb5 {[%emt 0:00:49]} 17. Ra5 {[%emt 0:01:26]} Nc7 {[%emt 0:04:21]} 18. Ra7 {[%emt 0:12:06]} Qd8 {[%emt 0:02:10]} 19. Bb2 {[%emt 0:07:22]} d5 {[%emt 0:10:38]} 20. Qa1 {[%emt 0:01:56]} Rb7 {[%emt 0:13:29]} 21. Rc1 {[%emt 0:00:44]} Qd6 {[%emt 0:02:19]} 22. Rxb7 {[%emt 0:05:56]} Bxb7 {[%emt 0:00:05]} 23. Qa7 {[%emt 0:00:19]} Bc6 {[%emt 0:03:51]} 24. Ne2 {[%emt 0:07:41]} Ra8 {[%emt 0:02:27]} 25. Qb6 {[%emt 0:01:08]} Ra6 {[%emt 0:00:14]} 26. Qb8+ {[%emt 0:01:24]} Ne8 {[%emt 0:01:43]} 27. Qc8 {[%emt 0:05:07]} Bd7 {[%emt 0:01:57]} 28. Qc5 {[%emt 0:01:03]} Ra2 {[%emt 0:06:19]} 29. Bc3 {[%emt 0:02:45]} Qxc5 {[%emt 0:04:31]} 30. bxc5 {[%emt 0:00:01]} Bc6 {[%emt 0:00:01]} 31. Ra1 {[%emt 0:01:16]} Rxa1+ {[%emt 0:00:16]} 32. Bxa1 {[%emt 0:00:01]} b4 {[%emt 0:02:31]} 33. d4 {[%emt 0:00:42]} Bb5 {[%emt 0:02:17]} 34. Bf1 {[%emt 0:00:57]} Bxe2 {[%emt 0:02:36]} 35. Bxe2 {[%emt 0:00:02]} exd4 {[%emt 0:00:05]} 36. exd4 {[%emt 0:00:30]} Nc7 {[%emt 0:00:10]} 37. Bf3 {[%emt 0:01:11]} Kf8 {[%emt 0:01:42]} 38. Kf1 {[%emt 0:00:13]} Ke7 {[%emt 0:00:02]} 39. Ke2 {[%emt 0:00:10]} Ke6 {[%emt 0:00:02]} 0-1

[Event "22nd Alekhine FIDE 2018"]
[Site "Voronezh"]
[Date "2018.06.17"]
[Round "6"]
[White "Yakimenko, Alexander A"]
[Black "Napalkov, Vladimir"]
[Result "1-0"]
[WhiteElo "2094"]
[BlackElo "2005"]
[Annotator "NA"]
[PlyCount "29"]
[EventDate "2018.??.??"]
[EventType "swiss"]
[EventCountry "RUS"]
[SourceTitle "playchess.com"]
[Source "ChessBase"]
[SourceQuality "1"]
[TimeControl "5400+30"]

{[%evp 8,29,7,32767,6,32767,32767,32767,32767,-12,32767,32767,21,0,0,-33,-33,-29,-29,-46,-15,32767,-16,-19]} 1. e4 c6 2. d3 d5 3. Nd2 Nf6 4. e5 Nfd7 5. Ngf3 e6 6. Be2 c5 7. c3 Nc6 8. d4 cxd4 9. cxd4 Qb6 10. Nb3 a5 {LiveBook: 3 Partien} 11. a4 Bb4+ 12. Kf1 $1 O-O 13. g3 f6 14. exf6 Nxf6 15. Kg2 $11 1-0